bitfinex/quotes_SOLUSD_20250607
["timestamp","ask_amount","ask_price","bid_price","bid_amount"]
[1749300864144,7.70825725,152.53,152.49,48.04825725]
[1749300864743,7.70825725,152.53,152.49,54.60604826]
[1749300865253,7.70825725,152.52,152.49,40.34]
[1749300868052,6.55613802,152.53,152.49,40.34]
[1749300868252,7.70825725,152.5,152.49,40.32]
[1749300869875,7.70825725,152.52,152.49,40.32]
[1749300872153,7.70825725,152.51,152.49,40.32]
[1749300876400,7.70825725,152.5,152.44,17.0071]
[1749300876569,7.70825725,152.49,152.45,46.85939904]
[1749300878573,7.70825725,152.5,152.45,54.56765629]
[1749300879080,7.70825725,152.5,152.46,40.3]
[1749300879871,7.70825725,152.5,152.46,46.85890189]
[1749300885297,7.70825725,152.5,152.46,40.3]
[1749300885298,7.70825725,152.49,152.46,40.3]
[1749300885494,7.70825725,152.48,152.46,40.3]
[1749300886290,7.70825725,152.47,152.44,10.52]
[1749300886588,7.70825725,152.47,152.45,40.3]
[1749300887097,7.70825725,152.48,152.45,40.3]
[1749300887484,7.70825725,152.48,152.44,6.55992623]
[1749300887787,7.70825725,152.48,152.45,40.3]
[1749300889193,7.70825725,152.48,152.45,46.85942299]
[1749300893385,26.35790611,152.49,152.45,46.85942299]
[1749300893586,25.85790611,152.49,152.45,46.85942299]
[1749300894882,7.70825725,152.48,152.45,46.85942299]
[1749300897679,7.70825725,152.47,152.45,46.85942299]
[1749300900595,7.70825725,152.48,152.45,46.85942299]
[1749300901877,7.70825725,152.48,152.45,40.3]
[1749300902102,7.70825725,152.47,152.45,40.3]
[1749300903300,7.70825725,152.47,152.42,6.56081879]
[1749300903503,7.70825725,152.46,152.43,40.28]
[1749300904194,7.70825725,152.46,152.42,6.56081879]
[1749300904400,7.70825725,152.46,152.43,40.28]
[1749300905386,18.64964886,152.47,152.43,46.84037066]
[1749300905590,7.70825725,152.46,152.43,46.84037066]
[1749300906389,7.70825725,152.45,152.43,46.84037066]
[1749300907105,7.70825725,152.44,152.41,10.48]
[1749300907281,7.70825725,152.44,152.42,40.28]
[1749300907599,18.64964886,152.46,152.37,24.64941882]
[1749300907600,7.70825725,152.43,152.37,24.64941882]
[1749300907820,7.70825725,152.41,152.38,40.28]
[1749300908112,7.70825725,152.41,152.37,17.04280964]
[1749300908415,7.70825725,152.39,152.38,40.28]
[1749300908617,26.66064886,152.45,152.38,40.28]
[1749300908618,7.70825725,152.41,152.38,46.84238544]
[1749300908783,26.66064886,152.45,152.38,46.84238544]
[1749300908784,33.22033727,152.45,152.38,46.84238544]
[1749300909105,7.70825725,152.42,152.39,40.28]
[1749300909314,7.70825725,152.4,152.39,40.28]
[1749300909997,7.70825725,152.4,152.37,17.04295032]
[1749300910199,7.70825725,152.4,152.39,40.28]
[1749300913935,7.70825725,152.4,152.36,6.56340246]
[1749300914212,7.70825725,152.4,152.38,40.3]
[1749300917412,7.70825725,152.39,152.38,40.3]
[1749300917710,7.70825725,152.4,152.38,40.3]
[1749300918888,7.70825725,152.4,152.37,6.56296987]
[1749300919101,7.70825725,152.4,152.38,40.3]
[1749300922223,7.70825725,152.39,152.38,40.3]
[1749300923317,7.70825725,152.39,152.33,42.7527]
[1749300923516,7.70825725,152.37,152.33,31.02547547]
[1749300923691,7.70825725,152.36,152.33,10.48]
[1749300923896,7.70825725,152.36,152.34,40.28]
[1749300925216,7.70825725,152.37,152.34,40.28]
[1749300925605,18.64964886,152.38,152.34,40.28]
[1749300925606,26.35790611,152.38,152.34,40.28]
[1749300926120,26.35790611,152.38,152.34,46.8439585]
[1749300927022,7.70825725,152.37,152.34,46.8439585]
[1749300929505,18.64964886,152.38,152.34,46.8439585]
[1749300929703,7.70825725,152.37,152.34,46.8439585]
[1749300931123,7.70825725,152.37,152.34,40.28]
[1749300931828,7.70825725,152.37,152.33,24.75279881]
[1749300932012,7.70825725,152.37,152.35,40.28]
[1749300933131,18.64964886,152.38,152.35,40.28]
[1749300933320,26.35790611,152.38,152.35,40.28]
[1749300934130,26.35790611,152.38,152.36,40.28]
[1749300934829,18.64964886,152.38,152.36,40.28]
[1749300935228,26.35790611,152.38,152.36,40.28]
[1749300935898,1.5472,152.4,152.36,40.28]
[1749300936111,7.70825725,152.38,152.36,40.28]
[1749300936623,26.35790611,152.39,152.36,40.28]
[1749300937208,18.64964886,152.39,152.36,40.28]
[1749300937409,17.04073037,152.43,152.36,54.55137021]
[1749300937612,7.70825725,152.41,152.36,54.55137021]
[1749300938010,7.70825725,152.4,152.36,46.84311296]
[1749300938222,7.70825725,152.4,152.36,54.55137021]
[1749300940128,7.70825725,152.41,152.36,54.55137021]
[1749300940332,7.70825725,152.41,152.37,7.70825725]
[1749300941012,7.70825725,152.41,152.36,54.55137021]
[1749300946640,7.70825725,152.41,152.37,7.70825725]
[1749300946821,18.64964886,152.43,152.39,6.56211037]
[1749300947006,26.35790611,152.43,152.4,40.28]
[1749300947712,18.64964886,152.43,152.4,40.28]
[1749300948838,26.35790611,152.43,152.4,40.28]
[1749300950224,26.35790611,152.43,152.4,46.84153549]
[1749300950225,7.70825725,152.43,152.4,46.84153549]
[1749300950413,9.28735725,152.44,152.4,46.84153549]
[1749300950616,9.28735725,152.44,152.4,54.54979274]
[1749300950918,9.28735725,152.44,152.4,46.84153549]
[1749300952842,7.70825725,152.43,152.4,40.28]
[1749300953221,8.13913668,152.44,152.4,40.28]
[1749300953525,7.70825725,152.43,152.4,40.28]
[1749300955242,14.26902601,152.43,152.4,40.28]
[1749300956019,7.70825725,152.41,152.36,7.70825725]
[1749300956431,7.70825725,152.41,152.37,40.26]
[1749300957250,7.70825725,152.4,152.37,40.26]
[1749300957831,6.56176119,152.4,152.37,40.26]
[1749300958030,7.70825725,152.41,152.37,47.96825725]
[1749300959015,7.70825725,152.41,152.37,7.70825725]
[1749300959221,14.26960636,152.41,152.38,40.26]
[1749300963046,6.56081879,152.42,152.38,40.26]
[1749300963245,14.26907604,152.42,152.38,40.26]
[1749300965254,11.50303152,152.41,152.38,40.26]
[1749300966556,4.94163624,152.41,152.38,40.26]
[1749300969533,11.50289025,152.41,152.38,40.26]
[1749300973561,4.94163624,152.4,152.38,40.26]
[1749300974160,11.50289025,152.41,152.38,40.26]
[1749300976458,11.50289025,152.41,152.38,40.24]
[1749300978272,4.94163624,152.39,152.38,40.24]
[1749300979757,4.94163624,152.39,152.34,28.31415109]
[1749300979758,4.94163624,152.39,152.35,6.56377457]
[1749300979968,4.94163624,152.39,152.36,40.24]
[1749300983269,4.94163624,152.39,152.36,46.80332504]
[1749300986573,4.94163624,152.39,152.36,6.56332504]
[1749300986753,4.94163624,152.39,152.37,40.24]
[1749300988676,23.5912851,152.4,152.37,40.24]
[1749300990957,23.5912851,152.4,152.36,6.56332504]
[1749300991279,23.5912851,152.4,152.37,40.24]
[1749301001988,4.94163624,152.39,152.37,40.24]
[1749301008798,42.4020101,152.43,152.37,40.24]
[1749301008799,4.94163624,152.38,152.37,40.24]
[1749301009893,23.5912851,152.38,152.37,40.24]
[1749301010696,18.64964886,152.38,152.37,40.24]
[1749301015689,18.64964886,152.38,152.35,11.50533873]
[1749301015875,18.64964886,152.38,152.36,40.22]
[1749301020691,23.5912851,152.38,152.36,40.22]
[1749301027892,23.5912851,152.38,152.34,6.56398275]
[1749301028093,23.5912851,152.38,152.35,40.2]
[1749301030310,23.5912851,152.38,152.35,46.76382738]
[1749301033113,23.5912851,152.38,152.35,40.2]
[1749301034081,23.5912851,152.38,152.35,46.76381201]
[1749301035201,18.64964886,152.38,152.35,46.76381201]
[1749301035381,18.64964886,152.38,152.35,40.2]
[1749301038315,23.5912851,152.38,152.35,40.2]
[1749301040011,30.15392628,152.38,152.35,40.2]
[1749301040310,23.5912851,152.38,152.35,40.2]
[1749301040881,18.64964886,152.38,152.35,40.2]
[1749301043513,18.64964886,152.38,152.35,46.76377011]
[1749301051407,18.64964886,152.38,152.35,51.70540635]
[1749301058317,6.14873879,152.42,152.36,4.94163624]
[1749301058318,12.70971312,152.42,152.36,4.94163624]
[1749301058505,12.70971312,152.42,152.37,4.94163624]
[1749301058506,23.5912851,152.42,152.37,4.94163624]
[1749301058823,4.94163624,152.41,152.38,6.56254101]
[1749301059020,4.94163624,152.41,152.39,40.18]
[1749301075740,11.50288771,152.41,152.39,40.18]
[1749301077739,6.56125147,152.41,152.39,40.18]
[1749301078032,11.50288771,152.41,152.39,40.18]
[1749301079331,25.21065264,152.42,152.39,40.18]
[1749301079636,4.94163624,152.41,152.39,40.18]
[1749301080028,11.50303821,152.41,152.39,40.18]
[1749301088818,23.5912851,152.4,152.34,16.748]
[1749301089155,4.94163624,152.39,152.35,45.10163624]
[1749301089657,30.1530551,152.4,152.35,51.66543707]
[1749301089960,32.14873879,152.43,152.37,4.94163624]
[1749301090128,18.64964886,152.42,152.38,40.16]
[1749301090321,23.5912851,152.42,152.38,40.16]
[1749301091047,18.64964886,152.42,152.38,40.16]
[1749301092147,23.5912851,152.42,152.38,40.16]
[1749301094655,30.15214926,152.42,152.38,40.16]
[1749301097453,25.21051302,152.42,152.38,40.16]
[1749301097643,30.15214926,152.42,152.38,40.16]
[1749301100326,18.64964886,152.42,152.38,51.66395818]
[1749301100949,25.21055206,152.42,152.38,45.10163624]
[1749301101139,30.1521883,152.42,152.38,45.10163624]
[1749301102856,30.1521883,152.42,152.38,40.16]
[1749301103349,30.1521883,152.42,152.38,45.10163624]
[1749301105633,25.21055206,152.42,152.38,45.10163624]
[1749301105950,30.1521883,152.42,152.38,45.10163624]
[1749301106654,30.1521883,152.42,152.38,40.16]
[1749301106655,4.94163624,152.41,152.38,40.16]
[1749301108039,23.5912851,152.4,152.34,6.348]
[1749301108244,4.94163624,152.39,152.35,40.14]
[1749301108447,11.50410864,152.39,152.35,40.14]
[1749301109261,11.50410864,152.39,152.35,45.08163624]
[1749301109557,11.50410864,152.39,152.35,4.94163624]
[1749301109861,11.50410864,152.39,152.36,40.14]
[1749301112760,6.5624724,152.39,152.36,40.14]
[1749301113267,11.50410864,152.39,152.36,40.14]
[1749301117464,4.94163624,152.38,152.36,40.14]
[1749301117965,4.94163624,152.37,152.33,41.34163624]
[1749301118130,4.94163624,152.36,152.34,40.14]
[1749301120160,4.94163624,152.37,152.34,40.14]
[1749301124162,11.50464787,152.37,152.34,40.14]
[1749301126468,4.94163624,152.36,152.34,40.14]
[1749301132554,4.94163624,152.37,152.34,40.14]
[1749301135701,4.94163624,152.36,152.34,40.14]
[1749301145495,4.94163624,152.37,152.34,40.14]
[1749301145717,4.94163624,152.36,152.34,40.14]
[1749301146586,4.94163624,152.35,152.33,40.12]
[1749301146900,4.94163624,152.34,152.3,32.1307]
[1749301147089,4.94163624,152.34,152.31,40.12]
[1749301147883,4.94163624,152.34,152.32,40.12]
[1749301150222,23.5912851,152.37,152.33,6.56469506]
[1749301152120,23.5912851,152.37,152.33,11.5063313]
[1749301152291,23.5912851,152.37,152.33,6.56469506]
[1749301160324,18.64964886,152.37,152.33,6.56469506]
[1749301160501,23.5912851,152.37,152.33,6.56469506]
[1749301161834,4.94163624,152.36,152.33,6.56469506]
[1749301162002,4.94163624,152.35,152.32,40.12]
[1749301164214,4.94163624,152.35,152.32,46.68505801]
[1749301167228,4.94163624,152.35,152.32,40.12]
[1749301169422,4.94163624,152.34,152.32,40.12]
[1749301170112,4.94163624,152.35,152.32,40.12]
[1749301170901,4.94163624,152.35,152.31,6.56542413]
[1749301171121,4.94163624,152.35,152.32,40.12]
[1749301172121,4.94163624,152.35,152.3,37.50761521]
[1749301172307,4.94163624,152.34,152.31,40.1]
[1749301176434,4.94163624,152.34,152.31,46.66550113]
[1749301178442,4.94163624,152.34,152.31,40.1]
[1749301180138,4.94163624,152.33,152.29,4.94163624]
[1749301180319,4.94163624,152.33,152.3,39.6]
[1749301181024,4.94163624,152.33,152.3,40.1]
[1749301182136,18.64964886,152.34,152.31,6.56555708]
[1749301182911,4.94163624,152.35,152.31,6.56555708]
[1749301185944,4.94163624,152.35,152.31,6.06555708]
[1749301186243,4.94163624,152.34,152.31,6.06555708]
[1749301186447,18.64964886,152.36,152.31,6.06555708]
[1749301186738,4.94163624,152.34,152.31,6.06555708]
[1749301191529,18.64964886,152.35,152.31,6.06555708]
[1749301191732,4.94163624,152.34,152.31,6.06555708]
[1749301191922,25.21273311,152.37,152.31,6.06555708]
[1749301192246,4.94163624,152.34,152.31,6.06555708]
[1749301194745,4.94163624,152.34,152.3,46.66597011]
[1749301200847,4.94163624,152.34,152.3,51.60760635]
[1749301201035,4.94163624,152.36,152.31,4.94163624]
[1749301201354,4.94163624,152.38,152.33,4.94163624]
[1749301201534,4.94163624,152.38,152.34,40.1]
[1749301201932,18.64964886,152.39,152.34,45.04163624]
[1749301202248,18.64964886,152.39,152.35,4.94163624]
[1749301202249,23.5912851,152.39,152.35,4.94163624]
[1749301202948,23.5912851,152.39,152.35,11.50515134]
[1749301203152,4.94163624,152.37,152.34,40.1]
[1749301203851,23.5912851,152.38,152.34,46.66424929]
[1749301204227,4.94163624,152.37,152.34,46.66424929]
[1749301204428,4.94163624,152.37,152.34,40.1]
[1749301204657,4.94163624,152.37,152.34,46.66414039]
[1749301205034,4.94163624,152.37,152.34,40.1]
[1749301205356,4.94163624,152.37,152.34,46.66421862]
[1749301205856,4.94163624,152.37,152.34,40.1]
[1749301206236,4.94163624,152.36,152.34,40.1]
[1749301207037,4.94163624,152.35,152.28,27.6381]
[1749301207249,4.94163624,152.34,152.3,4.94163624]
[1749301207454,18.64964886,152.36,152.3,4.94163624]
[1749301207455,4.94163624,152.35,152.3,4.94163624]
[1749301208760,4.94163624,152.35,152.31,46.64555708]
[1749301208963,4.94163624,152.35,152.31,40.08]
[1749301209333,11.5054978,152.35,152.31,40.08]
[1749301209662,4.94163624,152.33,152.29,6.56630917]
[1749301209956,4.94163624,152.32,152.28,6.56670922]
[1749301210259,4.94163624,152.32,152.29,40.08]
[1749301211957,4.94163624,152.3,152.27,10.34]
[1749301212258,4.94163624,152.33,152.28,45.02163624]
[1749301212436,4.94163624,152.33,152.29,4.94163624]
[1749301212948,4.94163624,152.33,152.29,11.50783544]
[1749301213140,4.94163624,152.33,152.29,6.5661992]
[1749301213335,20.29414886,152.34,152.29,11.50783544]
[1749301213538,4.94163624,152.33,152.29,11.50783544]
[1749301214268,4.94163624,152.33,152.29,6.5661992]
[1749301214645,4.94163624,152.32,152.29,6.5661992]
[1749301214851,4.94163624,152.32,152.28,51.58832724]
[1749301215351,4.94163624,152.32,152.28,46.646691]
[1749301215551,26.85857051,152.34,152.28,46.646691]
[1749301215737,4.94163624,152.32,152.28,46.646691]
[1749301219476,4.94163624,152.33,152.29,4.94163624]
[1749301219966,4.94163624,152.32,152.28,46.646691]
[1749301220179,4.94163624,152.32,152.28,51.58832724]
[1749301221134,4.94163624,152.32,152.28,6.566691]
[1749301221135,18.64964886,152.31,152.28,6.566691]
[1749301221335,4.94163624,152.29,152.23,6.5365]
[1749301221574,4.94163624,152.28,152.23,4.94163624]
[1749301221762,4.94163624,152.28,152.24,40.08]
[1749301222445,23.5912851,152.28,152.24,40.08]
[1749301222956,4.94163624,152.27,152.24,40.08]
[1749301224254,11.50913476,152.27,152.24,40.08]
[1749301225150,11.50913476,152.27,152.22,11.5107111]
[1749301225352,23.5912851,152.26,152.23,40.08]
[1749301225680,4.94163624,152.24,152.2,10.34]
[1749301225989,4.94163624,152.23,152.21,40.08]
[1749301226188,18.64964886,152.26,152.21,40.08]
[1749301226189,4.94163624,152.24,152.21,40.08]
[1749301227461,4.94163624,152.24,152.21,46.64956773]
[1749301230555,18.64964886,152.26,152.21,46.64956773]
[1749301230792,4.94163624,152.24,152.21,46.64956773]
[1749301234893,4.94163624,152.24,152.21,6.56956773]
[1749301235074,4.94163624,152.24,152.21,46.64956773]
[1749301238277,25.21736284,152.26,152.21,46.64956773]
[1749301238598,4.94163624,152.24,152.21,46.64956773]
[1749301241397,4.94163624,152.25,152.21,51.59120397]
[1749301245700,4.94163624,152.25,152.21,46.64956773]
[1749301247784,4.94163624,152.24,152.21,40.08]
[1749301248991,4.94163624,152.24,152.21,46.64984808]
[1749301249399,4.94163624,152.24,152.21,40.08]
[1749301249585,4.94163624,152.23,152.21,40.08]
[1749301250686,18.64964886,152.24,152.21,40.08]
[1749301251016,23.5912851,152.24,152.21,40.08]
[1749301252200,4.94163624,152.23,152.2,40.08]
[1749301253511,4.94163624,152.23,152.19,6.57073395]
[1749301253716,4.94163624,152.23,152.2,40.08]
[1749301254811,4.94163624,152.21,152.17,6.57128934]
[1749301255014,4.94163624,152.21,152.17,11.51292558]
[1749301255198,4.94163624,152.21,152.17,6.57128934]
[1749301255597,4.94163624,152.21,152.17,46.65128934]
[1749301256124,18.64964886,152.17,152.12,40.08]
[1749301256323,4.94163624,152.14,152.1,10.34]
[1749301256624,4.94163624,152.12,152.08,4.94163624]
[1749301256788,4.94163624,152.12,152.07,11.11953624]
[1749301257119,4.94163624,152.11,152.07,45.02163624]
[1749301257292,4.94163624,152.1,152.07,40.08]
[1749301258325,23.5912851,152.09,152.06,50.42]
[1749301258892,18.64964886,152.09,152.06,50.42]
[1749301260423,32.97798417,152.09,152.05,40.08]
[1749301260618,18.64964886,152.09,152.05,47.8331795]
[1749301260822,26.40282836,152.09,152.05,47.8331795]
[1749301261217,7.7531795,152.08,152.05,40.08]
[1749301262513,7.7531795,152.09,152.05,46.65672768]
[1749301262722,7.7531795,152.09,152.05,40.08]
[1749301262907,7.7531795,152.08,152.05,40.08]
[1749301264132,7.7531795,152.09,152.05,46.65669531]
[1749301264307,18.64964886,152.09,152.05,54.40987481]
[1749301264508,18.64964886,152.1,152.06,7.7531795]
[1749301264907,26.40282836,152.1,152.06,7.7531795]
[1749301265604,26.40282836,152.1,152.05,54.40987481]
[1749301266228,7.7531795,152.08,152.05,40.08]
[1749301266616,7.7531795,152.08,152.05,46.65673029]
[1749301266821,7.7531795,152.08,152.05,40.08]
[1749301267017,7.7531795,152.08,152.05,46.65675292]
[1749301267328,7.7531795,152.08,152.05,40.08]
[1749301268117,7.7531795,152.07,152.05,40.1]
[1749301268431,7.7531795,152.07,152.03,8.16522241]
[1749301268650,7.7531795,152.07,152.04,40.1]
[1749301268819,7.7531795,152.08,152.04,40.1]
[1749301269433,18.64964886,152.11,152.06,7.7531795]
[1749301269731,7.7531795,152.09,152.05,6.57658897]
[1749301269922,7.7531795,152.09,152.04,47.8531795]
[1749301269923,7.7531795,152.08,152.04,6.57708043]
[1749301270130,7.7531795,152.07,152.05,40.1]
[1749301270502,7.7531795,152.07,152.02,10.34]
[1749301270707,7.7531795,152.07,152.03,40.1]
[1749301271132,7.7531795,152.06,152.02,16.9179897]
[1749301271320,7.7531795,152.06,152.03,40.1]
[1749301272222,7.7531795,152.08,152.03,47.8531795]
[1749301272617,7.7531795,152.05,152.0,6.5788674]
[1749301272823,7.7531795,152.04,152.0,46.6788674]
[1749301273030,18.64964886,152.06,152.0,46.6788674]
[1749301273031,7.7531795,152.05,152.0,46.6788674]
[1749301273334,6.57679751,152.05,152.01,40.1]
[1749301273512,7.7531795,152.04,152.01,40.1]
[1749301275422,7.7531795,152.04,152.0,6.5788674]
[1749301275423,6.57678395,152.05,151.99,6.57931341]
[1749301275621,7.7531795,152.03,152.0,40.1]
[1749301276030,7.7531795,152.03,151.99,6.57931341]
[1749301276338,7.7531795,152.05,152.0,7.7531795]
[1749301276535,7.7531795,152.06,152.01,7.7531795]
[1749301276724,7.7531795,152.06,152.02,7.7531795]
[1749301276919,32.57518725,152.09,152.03,47.8531795]
[1749301277240,7.7531795,152.08,152.03,40.1]
[1749301277410,7.7531795,152.08,152.04,7.7531795]
[1749301278044,26.40282836,152.09,152.04,7.7531795]
[1749301278428,26.40282836,152.09,152.05,6.57678395]
[1749301278933,26.40282836,152.09,152.05,14.32996345]
[1749301279145,18.64964886,152.09,152.05,14.32996345]
[1749301279318,7.7531795,152.11,152.06,7.7531795]
[1749301279527,7.7531795,152.11,152.07,7.7531795]
[1749301279725,18.64964886,152.11,152.07,47.8731795]
[1749301280034,26.40282836,152.11,152.07,47.8731795]
[1749301280238,18.64964886,152.11,152.07,47.8731795]
[1749301280538,27.5006,152.14,152.09,14.32818457]
[1749301280711,7.7531795,152.14,152.09,14.32818457]
[1749301280913,6.57290604,152.14,152.08,14.32855974]
[1749301281145,7.7531795,152.12,152.08,14.32855974]
[1749301281335,7.7531795,152.11,152.07,46.69589973]
[1749301281720,7.7531795,152.11,152.07,54.44907923]
[1749301281921,18.64964886,152.13,152.07,46.69589973]
[1749301282145,7.7531795,152.1,152.07,40.12]
[1749301283018,26.40282836,152.11,152.07,40.12]
[1749301283742,7.7531795,152.1,152.07,40.12]
[1749301284045,7.7531795,152.09,152.07,40.12]
[1749301284846,7.7531795,152.08,152.07,40.12]
[1749301285426,7.7531795,152.09,152.07,40.12]
[1749301286149,7.7531795,152.1,152.07,40.12]
[1749301286656,7.7531795,152.1,152.05,6.57663302]
[1749301286657,26.40282836,152.09,152.05,6.57663302]
[1749301286945,18.64964886,152.11,152.06,40.1]
[1749301287137,7.7531795,152.09,152.05,6.57663302]
[1749301287322,7.7531795,152.09,152.06,40.1]
[1749301287717,26.40282836,152.09,152.06,40.1]
[1749301288842,7.7531795,152.08,152.06,40.1]
[1749301290053,7.7531795,152.08,152.04,6.57718729]
[1749301290216,7.7531795,152.08,152.05,40.1]
[1749301290728,43.9781932,152.12,152.06,6.57635144]
[1749301290729,18.64964886,152.11,152.06,6.57635144]
[1749301291044,18.64964886,152.11,152.06,14.32953094]
[1749301291045,7.7531795,152.1,152.06,14.32953094]
[1749301291247,7.7531795,152.11,152.07,7.7531795]
[1749301291941,18.64964886,152.12,152.07,7.7531795]
[1749301292139,26.40282836,152.12,152.07,7.7531795]
[1749301292341,7.7531795,152.12,152.07,7.7531795]
[1749301292543,6.57304075,152.14,152.08,7.7531795]
[1749301292544,18.64964886,152.14,152.08,7.7531795]
[1749301292724,7.7531795,152.13,152.09,46.67472943]
[1749301295666,7.7531795,152.12,152.09,46.67472943]
[1749301296666,7.7531795,152.12,152.09,40.1]
[1749301297755,7.7531795,152.1,152.09,40.1]
[1749301298060,7.7531795,152.1,152.07,10.34]
[1749301298276,7.7531795,152.09,152.07,50.44]
[1749301298439,7.7531795,152.09,152.07,40.1]
[1749301298635,7.7531795,152.08,152.07,40.1]
[1749301299228,7.7531795,152.09,152.06,40.1]
[1749301300659,7.7531795,152.08,152.06,40.1]
[1749301301266,7.7531795,152.08,152.05,40.1]
[1749301302936,7.7531795,152.07,152.05,40.1]
[1749301303136,7.7531795,152.07,152.04,40.1]
[1749301303444,7.7531795,152.06,152.03,10.34]
[1749301303755,7.7531795,152.06,152.03,50.44]
[1749301304295,7.7531795,152.05,152.03,50.44]
[1749301304862,7.7531795,152.05,152.03,40.1]
[1749301306241,7.7531795,152.05,152.02,40.1]
[1749301307138,7.7531795,152.04,152.02,40.1]
[1749301307765,7.7531795,152.05,152.02,40.1]
[1749301307938,7.7531795,152.03,151.97,6.5802461]
[1749301308141,10.34,152.07,152.0,7.7531795]
[1749301308142,18.64964886,152.05,152.0,7.7531795]
[1749301309344,18.64964886,152.05,152.0,14.33177343]
[1749301309549,18.64964886,152.05,152.0,6.57859393]
[1749301309856,18.61494078,152.05,152.0,6.57859393]
[1749301310380,32.94504729,152.05,151.99,6.57925444]
[1749301310747,7.7531795,152.03,151.98,46.67973581]
[1749301310947,7.7531795,152.04,151.98,54.43291531]
[1749301311249,18.61494078,152.05,152.01,6.57851457]
[1749301311963,26.36812028,152.05,152.01,6.57851457]
[1749301315978,26.36812028,152.05,152.0,46.69877811]
[1749301316369,7.7531795,152.04,152.0,46.69877811]
[1749301317173,18.61494078,152.05,152.0,46.69877811]
[1749301317174,7.7531795,152.03,152.0,46.69877811]
[1749301317854,7.7531795,152.04,152.0,46.69877811]
[1749301320682,7.7531795,152.04,152.0,40.12]
[1749301320858,7.7531795,152.02,152.0,40.12]
[1749301321602,7.7531795,152.01,152.0,40.12]
[1749301322255,7.7531795,152.01,151.99,50.46]
[1749301322456,7.7531795,152.01,151.99,40.12]
[1749301322663,7.7531795,152.0,151.99,40.12]
[1749301323364,7.7531795,152.0,151.97,32.5801346]
[1749301323670,7.7531795,152.0,151.97,72.7001346]
[1749301324084,18.64964886,152.02,151.97,72.7001346]
[1749301324258,7.7531795,152.01,151.97,72.7001346]
[1749301324459,18.64964886,152.02,151.97,72.7001346]
[1749301324460,7.7531795,152.0,151.97,72.7001346]
[1749301324954,7.7531795,152.0,151.97,46.7001346]
[1749301325981,7.7531795,152.0,151.97,40.12]
[1749301326284,25.22788336,152.02,151.97,46.70018878]
[1749301326462,7.7531795,152.01,151.97,46.70018878]
[1749301327070,7.7531795,152.02,151.98,7.7531795]
[1749301328260,18.64964886,152.02,151.99,6.57938022]
[1749301329692,34.0930416,152.05,151.99,6.57938022]
[1749301329693,26.40282836,152.04,151.99,14.33255972]
[1749301330587,7.7531795,152.03,151.99,14.33255972]
[1749301330795,7.7531795,152.03,151.99,6.57938022]
[1749301332063,18.64964886,152.04,151.99,6.57938022]
[1749301332268,7.7531795,152.03,151.99,6.57938022]
[1749301335893,7.7531795,152.02,151.98,6.57964627]
[1749301336892,7.7531795,152.02,151.97,54.45327455]
[1749301337361,7.7531795,152.02,151.97,14.33327455]
[1749301337556,7.7531795,152.02,151.98,40.12]
[1749301338086,7.7531795,152.01,151.98,46.69981286]
[1749301338658,7.7531795,152.01,151.98,40.12]
[1749301339585,7.7531795,152.01,151.95,18.0931795]
[1749301339770,7.7531795,152.01,151.98,40.12]
[1749301339975,7.7531795,152.0,151.98,40.12]
[1749301340692,26.40282836,151.99,151.9,10.34]
[1749301340875,7.7531795,151.97,151.91,47.8731795]
[1749301341386,7.7531795,151.97,151.92,7.7531795]
[1749301341769,7.7531795,151.97,151.93,6.58197854]
[1749301342491,25.22920802,151.99,151.92,6.58232671]
[1749301342492,7.7531795,151.96,151.92,6.58232671]
[1749301342666,7.7531795,151.96,151.93,40.12]
[1749301343173,7.7531795,151.96,151.92,6.58232671]
[1749301343386,7.7531795,151.96,151.92,46.70232671]
[1749301344566,7.7531795,151.96,151.92,54.45550621]
[1749301344767,26.74476781,151.99,151.93,40.12]
[1749301344989,7.7531795,151.96,151.93,40.12]
[1749301345689,7.7531795,151.96,151.94,6.58154534]
[1749301346189,7.7531795,151.97,151.94,6.58154534]
[1749301347080,7.7531795,151.98,151.94,14.33472484]
[1749301348969,7.7531795,151.98,151.94,6.58154534]
[1749301349495,7.7531795,151.97,151.94,6.58154534]
[1749301351374,26.74474345,151.99,151.93,40.12]
[1749301351375,7.7531795,151.96,151.93,40.12]
[1749301351710,7.7531795,151.94,151.92,40.12]
[1749301351867,7.7531795,151.95,151.92,40.12]
[1749301353570,7.7531795,151.95,151.91,6.58278047]
[1749301353770,7.7531795,151.95,151.92,46.70241096]